fUSD/lending_fUSD_20260413
["ID","MTS","AMOUNT","RATE_DAILY","PERIOD"]
[420415794,1776087080357,-500.0,0.00017725,7]
[420415795,1776087080375,-500.0,0.00017725,7]
[420415796,1776087080394,-500.0,0.00017725,7]
[420415797,1776087080408,-500.0,0.00017725,7]
[420415798,1776087080423,-617.15786941,0.00017725,7]
[420415799,1776087080437,-538.75555333,0.00017725,7]
[420415800,1776087080448,-908.0,0.00017725,7]
[420415801,1776087080462,-908.0,0.00017725,7]
[420415802,1776087080488,-908.0,0.00017725,7]
[420415803,1776087080498,-908.0,0.00017725,7]
[420415804,1776087080512,-908.0,0.00017725,7]
[420415805,1776087080527,-908.0,0.00017725,7]
[420415806,1776087080537,-908.0,0.00017725,7]
[420415807,1776087080547,-908.0,0.00017725,7]
[420415808,1776087080559,-908.0,0.00017725,7]
[420415809,1776087080571,-908.0,0.00017725,7]
[420415810,1776087080583,-908.0,0.00017725,7]
[420415811,1776087080592,-908.0,0.00017725,7]
[420415812,1776087080606,-908.0,0.00017725,7]
[420415813,1776087080618,-908.0,0.00017725,7]
[420415814,1776087080631,-908.0,0.00017725,7]
[420415815,1776087080646,-908.0,0.00017725,7]
[420415816,1776087080658,-908.0,0.00017725,7]
[420415817,1776087080668,-908.0,0.00017725,7]
[420415818,1776087080679,-908.0,0.00017725,7]
[420415819,1776087080693,-908.0,0.00017725,7]
[420415820,1776087080716,-908.0,0.00017725,7]
[420415821,1776087080726,-908.0,0.00017725,7]
[420415822,1776087080742,-908.0,0.00017725,7]
[420415823,1776087080753,-921.18093588,0.00017725,7]
[420415824,1776087080765,-185.0,0.00017725,2]
[420415825,1776087080774,-185.01566537,0.00017725,2]
[420415826,1776087080795,-3973.32,0.00017728,2]
[420415827,1776087080806,-3104.7083202,0.00017747,2]
[420415828,1776087080816,-206.41,0.0001776,2]
[420415829,1776087080840,-491.69926583,0.00017763,2]
[420415830,1776087080857,-3104.7083202,0.00017778,2]
[420415831,1776087080879,-1680.0,0.00017796,2]
[420415832,1776087080892,-151.94,0.00017808,2]
[420415833,1776087080902,-3104.7083202,0.00017808,2]
[420415834,1776087080930,-500.0,0.00017837,2]
[420415835,1776087080947,-2280.27,0.00017838,2]
[420415836,1776087080975,-3104.7083202,0.00017839,2]
[420415837,1776087080989,-3104.7083202,0.00017869,2]
[420415838,1776087081022,-3104.7083202,0.000179,2]
[420415839,1776087081059,-3872.85386004,0.000179,2]
[420415840,1776087081071,-2077.12545828,0.000179,2]
[420415841,1776087081116,-150.70043738,0.000179,2]
[420415842,1776087081127,-1179.20209092,0.000179,2]
[420415843,1776087081151,-990.6,0.000179,2]
[420415844,1776087081164,-151.0,0.0001797,2]
[420415845,1776087081174,-814.0,0.00017973,2]
[420415846,1776087081214,-37212.0,0.00017973,2]
[420415847,1776087081231,-500.0,0.00017973,2]
[420415848,1776087081266,-400.0,0.00017973,2]
[420415849,1776087081288,-159.95112224,0.00017973,2]
[420415850,1776087081299,-500.0,0.00017973,2]
[420415851,1776087081311,-500.0,0.00017973,2]
[420415852,1776087081325,-500.0,0.00017973,2]
[420415853,1776087081342,-500.0,0.00017973,2]
[420415854,1776087081355,-204.52013134,0.0001799,2]
[420415855,1776087081380,-1600.0,0.00017993,2]
[420415856,1776087081392,-151.0,0.00017997,2]
[420415857,1776087081402,-500.0,0.00017998,2]
[420415858,1776087081431,-500.0,0.00017998,2]
[420415859,1776087081442,-169.30134648,0.00017998,2]
[420415860,1776087081484,-500.0,0.00017998,2]
[420415861,1776087081524,-500.0,0.00017998,2]
[420415862,1776087081538,-214.92404474,0.00017998,2]
[420415863,1776087081568,-193.52063708,0.00017998,2]
[420415864,1776087081581,-500.0,0.00017998,2]
[420415865,1776087081594,-500.0,0.00017998,2]
[420415866,1776087081609,-500.0,0.00017998,2]
[420415867,1776087081620,-500.0,0.00017998,2]
[420415868,1776087081631,-500.0,0.00017998,2]
[420415869,1776087081646,-150.0,0.00017998,2]
[420415870,1776087081657,-500.0,0.00017998,2]
[420415871,1776087081670,-500.0,0.00017998,2]
[420415872,1776087081691,-500.0,0.00017998,2]
[420415873,1776087082062,-9299.0788924,0.00017999,2]
[420415874,1776087082080,-500.0,0.00017999,2]
[420415875,1776087082095,-503.5332702,0.00017999,2]
[420415876,1776087082106,-6605.8773193,0.00017999,2]
[420415877,1776087082132,-500.0,0.00017999,2]
[420415878,1776087082145,-500.0,0.00017999,2]
[420415879,1776087082162,-500.0,0.00017999,2]
[420415880,1776087082178,-500.0,0.00017999,2]
[420415881,1776087082189,-500.0,0.00017999,2]
[420415882,1776087082203,-500.0,0.00017999,2]
[420415883,1776087082228,-242.87173227,0.00017999,2]
[420415884,1776087082238,-1086.1218991,0.00017999,5]
[420415885,1776087082250,-1086.1218991,0.00017999,5]
[420415886,1776087082290,-500.0,0.00017999,2]
[420415887,1776087082300,-500.0,0.00017999,2]
[420415888,1776087082311,-500.0,0.00017999,2]
[420415889,1776087082327,-500.0,0.00017999,2]
[420415890,1776087082342,-500.0,0.00017999,2]
[420415891,1776087082353,-500.0,0.00017999,2]
[420415892,1776087082368,-500.0,0.00017999,2]
[420415893,1776087082384,-500.0,0.00017999,2]
[420415895,1776087082395,-500.0,0.00017999,2]
[420415896,1776087082404,-500.0,0.00017999,2]
[420415897,1776087082418,-500.0,0.00017999,2]
[420415898,1776087082433,-427.09763699,0.00017999,2]
[420415900,1776087082448,-169.8498409,0.00017999,2]
[420415901,1776087082458,-500.0,0.00017999,2]
[420415902,1776087082479,-500.0,0.00017999,2]
[420415903,1776087082490,-500.0,0.00017999,2]
[420415904,1776087082503,-500.0,0.00017999,2]
[420415905,1776087082524,-500.0,0.00017999,2]
[420415906,1776087082536,-447.82,0.00017999,2]
[420415907,1776087082547,-28137.9249787,0.00017999,2]
[420415908,1776087082578,-500.0,0.00017999,2]
[420415909,1776087082588,-511.13749879,0.00017999,2]
[420415910,1776087082616,-172.9660446,0.00017999,2]
[420415911,1776087082626,-500.0,0.00017999,2]
[420415912,1776087082639,-500.0,0.00017999,2]
[420415913,1776087082675,-500.0,0.00017999,2]
[420415914,1776087082686,-500.0,0.00017999,2]
[420415915,1776087082698,-500.0,0.00017999,2]
[420415916,1776087082735,-500.0,0.00017999,2]
[420415917,1776087082748,-500.0,0.00017999,2]
[420415918,1776087082757,-500.0,0.00017999,2]
[420415919,1776087082780,-500.0,0.00017999,2]
[420415920,1776087082794,-500.0,0.00017999,2]
[420415921,1776087082804,-607.79368302,0.00017999,2]
[420415922,1776087082816,-500.0,0.00017999,2]
[420415923,1776087082836,-500.0,0.00017999,2]
[420415924,1776087082846,-500.0,0.00017999,2]
[420415925,1776087082857,-500.0,0.00017999,2]
[420415926,1776087082879,-500.0,0.00017999,2]
[420415927,1776087082889,-500.0,0.00017999,2]
[420415928,1776087082901,-500.0,0.00017999,2]
[420415929,1776087082925,-500.0,0.00017999,2]
[420415930,1776087082943,-500.0,0.00017999,2]
[420415931,1776087082953,-297.55715816,0.00017999,2]
[420415932,1776087082971,-18602.7436207,0.00017999,2]
[420415933,1776087082986,-500.0,0.00017999,2]
[420415934,1776087082996,-500.0,0.00017999,2]
[420415935,1776087083016,-500.0,0.00017999,2]
[420415936,1776087083026,-500.0,0.00017999,2]
[420415937,1776087083036,-500.0,0.00017999,2]
[420415938,1776087083061,-500.0,0.00017999,2]
[420415939,1776087083072,-500.0,0.00017999,2]
[420415940,1776087083083,-500.0,0.00017999,2]
[420415941,1776087083107,-500.0,0.00017999,2]
[420415942,1776087083125,-500.0,0.00017999,2]
[420415943,1776087083136,-500.0,0.00017999,2]
[420415944,1776087083149,-500.0,0.00017999,2]
[420415945,1776087083164,-500.0,0.00017999,2]
[420415946,1776087083176,-500.0,0.00017999,2]
[420415947,1776087083186,-500.0,0.00017999,2]
[420415948,1776087083197,-500.0,0.00017999,2]
[420415949,1776087083228,-500.0,0.00017999,2]
[420415950,1776087083239,-500.0,0.00017999,2]
[420415951,1776087083261,-500.0,0.00017999,2]
[420415952,1776087083272,-500.0,0.00017999,2]
[420415953,1776087083300,-486.893955,0.00017999,2]
[420415954,1776087083325,-164.44930853,0.00017999,2]
[420415955,1776087083340,-475.44847711,0.00017999,2]
[420415956,1776087083366,-297259.3006513,0.00017999,2]
[420415957,1776087083377,-500.0,0.00017999,2]
[420415958,1776087083394,-500.0,0.00017999,2]
[420415959,1776087083414,-500.0,0.00017999,2]
[420415960,1776087083426,-500.0,0.00017999,2]
[420415961,1776087083437,-500.0,0.00017999,2]
[420415962,1776087083453,-500.0,0.00017999,2]
[420415963,1776087083468,-500.0,0.00017999,2]
[420415964,1776087083479,-500.0,0.00017999,2]
[420415965,1776087083489,-500.0,0.00017999,2]
[420415966,1776087083500,-500.0,0.00017999,2]
[420415967,1776087083514,-500.0,0.00017999,2]
[420415968,1776087083528,-500.0,0.00017999,2]
[420415969,1776087083539,-500.0,0.00017999,2]
[420415970,1776087083549,-500.0,0.00017999,2]
[420415971,1776087083578,-500.0,0.00017999,2]
[420415972,1776087083599,-500.0,0.00017999,2]
[420415973,1776087083610,-500.0,0.00017999,2]
[420415974,1776087083621,-500.0,0.00017999,2]
[420415975,1776087083639,-500.0,0.00017999,2]
[420415976,1776087083658,-500.0,0.00017999,2]
[420415977,1776087083674,-275.46541553,0.00017999,2]
[420415978,1776087083684,-860.29,0.00017999,2]
[420415979,1776087083701,-692.54,0.00017999,2]
[420415980,1776087083727,-692.54,0.00017999,2]
[420415981,1776087083738,-692.54,0.00017999,2]
[420415982,1776087083750,-692.54,0.00017999,2]
[420415983,1776087083771,-692.54,0.00017999,2]
[420415984,1776087083783,-692.54,0.00017999,2]
[420415985,1776087083794,-692.54,0.00017999,2]
[420415986,1776087083809,-692.54,0.00017999,2]
[420415987,1776087083820,-692.54,0.00017999,2]
[420415988,1776087083831,-692.54,0.00017999,2]
[420415989,1776087083845,-692.54,0.00017999,2]
[420415990,1776087083857,-692.54,0.00017999,2]
[420415991,1776087083871,-692.54,0.00017999,2]
[420415992,1776087083887,-692.54,0.00017999,2]
[420415993,1776087083897,-692.54,0.00017999,2]
[420415994,1776087083908,-692.54,0.00017999,2]
[420415995,1776087083918,-692.54,0.00017999,2]
[420415996,1776087083932,-692.54,0.00017999,2]
[420415997,1776087083943,-692.54,0.00017999,2]
[420415998,1776087083953,-692.54,0.00017999,2]
[420415999,1776087083964,-692.54,0.00017999,2]
[420416000,1776087083974,-692.54,0.00017999,2]
[420416001,1776087083986,-692.54,0.00017999,2]
[420416002,1776087083998,-692.59221527,0.00017999,2]
[420416003,1776087084010,-903.1,0.00017999,2]
[420416004,1776087084025,-903.1,0.00017999,2]
[420416005,1776087084035,-903.1,0.00017999,2]
[420416006,1776087084050,-903.1,0.00017999,2]
[420416007,1776087084062,-903.1,0.00017999,2]
[420416008,1776087084073,-903.1,0.00017999,2]
[420416009,1776087084086,-903.1,0.00017999,2]
[420416010,1776087084102,-903.1,0.00017999,2]
[420416011,1776087084113,-903.1,0.00017999,2]
[420416012,1776087084123,-903.1,0.00017999,2]
[420416013,1776087084139,-903.1,0.00017999,2]
[420416014,1776087084150,-903.1,0.00017999,2]
[420416015,1776087084160,-903.1,0.00017999,2]
[420416016,1776087084174,-903.1,0.00017999,2]
[420416017,1776087084187,-903.1,0.00017999,2]
[420416018,1776087084199,-903.1,0.00017999,2]
[420416019,1776087084211,-903.1,0.00017999,2]
[420416020,1776087084226,-903.1,0.00017999,2]
[420416021,1776087084236,-903.1,0.00017999,2]
[420416022,1776087084246,-903.1,0.00017999,2]
[420416023,1776087084258,-903.1,0.00017999,2]
[420416024,1776087084281,-903.1,0.00017999,2]
[420416025,1776087084292,-903.1,0.00017999,2]
[420416026,1776087084305,-903.29390502,0.00017999,2]
[420416027,1776087084319,-528.6314374,0.00017999,2]
[420416028,1776087084332,-500.0,0.00017999,2]
[420416029,1776087084346,-500.0,0.00017999,2]
[420416030,1776087084363,-500.0,0.00017999,2]
[420416031,1776087084373,-500.0,0.00017999,2]
[420416032,1776087084384,-500.0,0.00017999,2]
[420416033,1776087084401,-500.0,0.00017999,2]
[420416034,1776087084414,-500.0,0.00017999,2]
[420416035,1776087084429,-500.0,0.00017999,2]
[420416036,1776087084440,-500.0,0.00017999,2]
[420416037,1776087084453,-500.0,0.00017999,2]
[420416038,1776087084467,-500.0,0.00017999,2]
[420416039,1776087084477,-500.0,0.00017999,2]
[420416040,1776087084492,-500.0,0.00017999,2]
[420416041,1776087084505,-500.0,0.00017999,2]
[420416042,1776087084539,-500.0,0.00017999,2]
[420416043,1776087084550,-500.0,0.00017999,2]
[420416044,1776087084561,-500.0,0.00017999,2]
[420416045,1776087084592,-500.0,0.00017999,2]
[420416046,1776087084602,-500.0,0.00017999,2]
[420416047,1776087084616,-500.0,0.00017999,2]
[420416048,1776087084639,-500.0,0.00017999,2]
[420416049,1776087084694,-500.0,0.00017999,2]
[420416050,1776087084716,-500.0,0.00017999,2]
[420416051,1776087084738,-500.0,0.00017999,2]
[420416052,1776087084759,-500.0,0.00017999,2]
[420416053,1776087084798,-500.0,0.00017999,2]
[420416054,1776087084809,-500.0,0.00017999,2]
[420416055,1776087084847,-500.0,0.00017999,2]
[420416056,1776087084860,-500.0,0.00017999,2]
[420416057,1776087084895,-500.0,0.00017999,2]
[420416058,1776087084911,-500.0,0.00017999,2]
[420416059,1776087084927,-500.0,0.00017999,2]
[420416060,1776087084938,-500.0,0.00017999,2]
[420416061,1776087084954,-500.0,0.00017999,2]
[420416062,1776087084976,-500.0,0.00017999,2]
[420416063,1776087084989,-500.0,0.00017999,2]
[420416064,1776087084999,-500.0,0.00017999,2]
[420416065,1776087085015,-500.0,0.00017999,2]
[420416066,1776087085030,-500.0,0.00017999,2]
[420416067,1776087085040,-500.0,0.00017999,2]
[420416068,1776087085060,-500.0,0.00017999,2]
[420416069,1776087085070,-500.0,0.00017999,2]
[420416070,1776087085082,-500.0,0.00017999,2]
[420416071,1776087085099,-500.0,0.00017999,2]
[420416072,1776087085108,-500.0,0.00017999,2]
[420416073,1776087085118,-576.52985138,0.00017999,2]
[420416074,1776087085131,-500.0,0.00017999,2]
[420416075,1776087085141,-500.0,0.00017999,2]
[420416076,1776087085152,-282.43651056,0.00017999,2]
[420416077,1776087085162,-500.0,0.00017999,2]
[420416078,1776087085173,-500.0,0.00017999,2]
[420416079,1776087085183,-500.0,0.00017999,2]
[420416080,1776087085197,-500.0,0.00017999,2]
[420416081,1776087085206,-500.0,0.00017999,2]
[420416082,1776087085216,-500.0,0.00017999,2]
[420416083,1776087085225,-500.0,0.00017999,2]
[420416084,1776087085237,-500.0,0.00017999,2]
[420416085,1776087085247,-500.0,0.00017999,2]
[420416086,1776087085258,-500.0,0.00017999,2]
[420416087,1776087085268,-500.0,0.00017999,2]
[420416088,1776087085284,-500.0,0.00017999,2]
[420416089,1776087085293,-495.19375991,0.00017999,2]
[420416090,1776087085305,-500.0,0.00017999,2]
[420416091,1776087085317,-500.0,0.00017999,2]
[420416092,1776087085330,-500.0,0.00017999,2]
[420416093,1776087085343,-500.0,0.00017999,2]
[420416094,1776087085354,-500.0,0.00017999,2]
[420416095,1776087085380,-344.56450093,0.00017999,2]
[420416096,1776087085392,-152.0,0.00018,5]
[420416097,1776087085402,-301.0,0.00018,5]
[420416098,1776087085426,-569.71919502,0.00018,5]
[420416099,1776087085448,-5367985.04330504,0.00018,2]
[420416100,1776087086170,-13653.5233927,0.00018,2]
[420416101,1776087104427,1753.230545,0.0002254,120]
[420416105,1776087115316,1000.0,0.00030136,120]
[420416106,1776087123972,1017.0,0.00030137,120]
[420416107,1776087140421,1909.8,0.00030082,120]
[420416108,1776087140846,1909.8,0.00030082,120]
[420416113,1776087272096,150.0,0.00011635,2]
[420416114,1776087345479,2762.065051,0.00016109,30]
[420416115,1776087346866,2762.065051,0.00016198,30]
[420416117,1776087530615,500.0,0.0003013,120]
[420416118,1776087562367,3240.0,0.00015917,2]
[420416119,1776087633681,513.27,0.0001593,2]
[420416120,1776087644604,327.37525496,0.00016139,30]
[420416121,1776087682299,169.52,0.00012716,2]
[420416122,1776087682537,169.52,0.00015895,2]
[420416123,1776087736520,2257.2,0.00030082,120]
[420416124,1776087929745,500.0,0.0003013,120]
[420416125,1776087956482,5000.0,0.00030136,120]
[420416126,1776087957924,686.0,0.00030137,120]
[420416128,1776087991313,592.57,0.00015898,2]
[420416129,1776087991397,3200.0,0.00030137,120]
[420416130,1776087996371,908.89,7.949e-05,2]
[420416131,1776087996607,908.89,8.367e-05,2]
[420416132,1776087996795,908.89,8.786e-05,2]
[420416133,1776087997009,908.89,9.204e-05,2]
[420416134,1776087997192,908.89,9.622e-05,2]
[420416135,1776087997409,908.89,0.00010041,2]
[420416136,1776087997654,908.89,0.00010459,2]
[420416137,1776087997878,908.89,0.00010877,2]
[420416138,1776087998119,908.89,0.00011296,2]
[420416139,1776087998777,908.89,0.00011714,2]
[420416140,1776087998863,318.54,0.00012132,2]
[420416141,1776087998909,590.35,0.00012132,2]
[420416142,1776087999030,908.89,0.00012551,2]
[420416143,1776087999156,908.89,0.00012969,2]
[420416144,1776087999444,908.89,0.00013387,2]
[420416145,1776087999679,830.68,0.00013806,2]
[420416146,1776087999708,78.21,0.00013806,2]
[420416147,1776087999898,908.89,0.00014224,2]
[420416148,1776088000953,908.89,0.00014643,2]
[420416149,1776088001110,908.89,0.00015061,2]
[420416150,1776088001361,908.89,0.00015479,2]
[420416151,1776088001464,250.0,0.00013,2]
[420416152,1776088001532,908.89,0.00015898,2]
[420416153,1776088001904,300.0,0.00015,2]
[420416154,1776088028095,200.0,0.000129,2]
[420416155,1776088031209,2287.03,0.00015885,2]
[420416156,1776088060337,1411.51,0.0001589,2]
[420416157,1776088110748,150.0,0.00015798,2]
[420416158,1776088131940,500.0,0.00015804,2]
[420416159,1776088154631,1009.8,0.00015804,2]
[420416160,1776088169002,200.0,0.00015804,2]
[420416161,1776088169433,337.0,0.00015804,2]
[420416167,1776088232208,-184.14884265,0.00016098,2]
[420416168,1776088232232,-215.85115735,0.00016098,2]
[420416169,1776088232269,-192.14884265,0.00016098,2]
[420416170,1776088232281,-200.0,0.00016109,2]
[420416171,1776088232299,-2000.0,0.00016139,2]
[420416172,1776088232314,-159.7,0.00016198,2]
[420416173,1776088232326,-150.0,0.000165,2]
[420416174,1776088232358,-346.9611,0.000165,2]
[420416175,1776088232367,-500.0,0.00016525,2]
[420416176,1776088232392,-2762.065051,0.00016525,30]
[420416177,1776088232403,-300.0,0.00016534,2]
[420416178,1776088232415,-1200.0,0.00016534,2]
[420416179,1776088232432,-3426.60897406,0.00016535,2]
[420416180,1776088232446,-8353.76,0.00016535,2]
[420416181,1776088232458,-1046.17232594,0.00016535,2]
[420416182,1776088232483,-58.70108703,0.00016541,2]
[420416184,1776088232498,-427.65,0.00016541,2]
[420416185,1776088232511,-91.85815605,0.00016541,2]
[420416186,1776088232527,-775.75637362,0.00016551,30]
[420416187,1776088232541,-1986.30867738,0.00016551,30]
[420416188,1776088232550,-151.0,0.00016625,2]
[420416189,1776088232564,-174.61919141,0.00016625,2]
[420416190,1776088232587,-490.13372255,0.00016625,2]
[420416191,1776088232597,-150.0,0.00016634,2]
[420416192,1776088232607,-719.78,0.00016635,2]
[420416193,1776088232628,-1268.16,0.00016635,2]
[420416194,1776088232638,-1855.66799389,0.00016635,2]
[420416195,1776088232692,-4060.80200611,0.00016635,2]
[420416196,1776088232717,-299.99,0.00016635,4]
[420416197,1776088232728,-8086.01,0.00016635,2]
[420416198,1776088232739,-150.99,0.00016635,2]
[420416199,1776088232752,-151.0,0.0001668,2]
[420416200,1776088232773,-513.27,0.00016727,2]
[420416201,1776088232787,-151.0,0.00016735,2]
[420416202,1776088232797,-184.14884264,0.00016788,2]
[420416203,1776088232811,-151.0,0.0001679,2]
[420416204,1776088232823,-557.7908,0.00016799,2]
[420416205,1776088232837,-300.0,0.000168,6]
[420416206,1776088232850,-164.16039387,0.000168,2]
[420416207,1776088232860,-3797.667,0.00016834,2]
[420416208,1776088232870,-166.165,0.00016834,2]
[420416209,1776088232887,-151.0,0.00016845,2]
[420416210,1776088232898,-500.0,0.00016873,2]
[420416211,1776088232908,-521.50805526,0.00016873,2]
[420416212,1776088232922,-200.0,0.0001688,2]
[420416213,1776088232933,-151.0,0.0001688,2]
[420416214,1776088232945,-180.82892563,0.0001688,2]
[420416215,1776088232968,-151.0,0.0001688,2]
[420416216,1776088232978,-500.0,0.0001688,2]
[420416217,1776088232997,-500.0,0.0001688,2]
[420416218,1776088233009,-500.0,0.0001688,2]
[420416219,1776088233021,-500.0,0.0001688,2]
[420416220,1776088233052,-500.0,0.0001688,2]
[420416221,1776088233062,-500.0,0.0001688,2]
[420416222,1776088233082,-500.0,0.0001688,2]
[420416223,1776088233095,-500.0,0.0001688,2]
[420416224,1776088233105,-500.0,0.0001688,2]
[420416225,1776088233122,-500.0,0.0001688,2]
[420416226,1776088233133,-500.0,0.0001688,2]
[420416227,1776088233142,-253.92946486,0.0001688,2]
[420416228,1776088233162,-279.9045709,0.0001688,2]
[420416229,1776088233174,-1000.0,0.00016888,2]
[420416230,1776088233183,-1000.0,0.00016888,2]
[420416231,1776088233213,-661.3451527,0.00016888,2]
[420416232,1776088233231,-1075.36,0.00016889,2]
[420416233,1776088233249,-500.0,0.00016889,2]
[420416234,1776088233260,-500.0,0.00016889,2]
[420416235,1776088233278,-500.0,0.00016889,2]
[420416236,1776088233296,-500.0,0.00016889,2]
[420416237,1776088233309,-430.33279263,0.00016889,2]
[420416238,1776088233325,-69.66720737,0.00016889,2]
[420416239,1776088233351,-185.84283691,0.00016889,2]
[420416240,1776088233381,-314.15716309,0.00016889,2]
[420416241,1776088233404,-500.0,0.00016889,2]
[420416242,1776088233415,-500.0,0.00016889,2]
[420416243,1776088233423,-500.0,0.00016889,2]
[420416244,1776088233443,-500.0,0.00016889,2]
[420416245,1776088233452,-500.0,0.00016889,2]
[420416246,1776088233462,-500.0,0.00016889,2]
[420416247,1776088233481,-500.0,0.00016889,2]
[420416248,1776088233491,-201.28258175,0.00016889,2]
[420416249,1776088233502,-500.0,0.00016889,2]
[420416250,1776088233518,-500.0,0.00016889,2]
[420416251,1776088233538,-500.0,0.00016889,2]
[420416252,1776088233548,-500.0,0.00016889,2]
[420416253,1776088233563,-500.0,0.00016889,2]
[420416254,1776088233575,-500.0,0.00016889,2]
[420416255,1776088233586,-500.0,0.00016889,2]
[420416256,1776088233596,-522.3647313,0.00016889,2]
[420416257,1776088233609,-151.0,0.000169,2]
[420416258,1776088233622,-700.0,0.000169,6]
[420416259,1776088233638,-151.0,0.00016955,2]
[420416260,1776088233659,-1175.0,0.00017,2]
[420416261,1776088233671,-151.0,0.0001701,2]
[420416262,1776088233682,-151.0,0.00017065,2]
[420416263,1776088233698,-151.0,0.0001712,2]
[420416264,1776088233707,-1075.36,0.00017163,2]
[420416265,1776088233721,-174.77929058,0.00017163,2]
[420416266,1776088233738,-223.61324883,0.00017173,2]
[420416267,1776088233748,-173.4805,0.00017325,2]
[420416268,1776088233763,-1100.0,0.000174,6]
[420416269,1776088233786,-1000.0,0.00017421,2]
[420416270,1776088233811,-290.26104003,0.00017428,2]
[420416271,1776088233822,-1075.36,0.00017437,2]
[420416272,1776088233839,-2000.0,0.000175,2]
[420416273,1776088233853,-1500.0,0.000175,6]
[420416274,1776088233862,-513.27,0.00017523,2]
[420416275,1776088233878,-168.5543,0.000176,2]
[420416276,1776088233898,-1900.0,0.000176,6]
[420416277,1776088233910,-278.8954,0.00017639,2]
[420416278,1776088233920,-500.0,0.00017655,2]
[420416279,1776088233929,-300.0,0.000177,6]
[420416280,1776088233939,-270.21301642,0.00017708,2]
[420416281,1776088233950,-1075.36,0.00017711,2]
[420416282,1776088233961,-500.0,0.00017724,2]
[420416283,1776088233970,-500.0,0.00017724,2]
[420416284,1776088233979,-500.0,0.00017724,2]
[420416285,1776088233993,-500.0,0.00017724,2]
[420416286,1776088234003,-535.11,0.00017724,2]
[420416287,1776088234012,-150.0,0.00017725,2]
[420416288,1776088234023,-491.0,0.00017725,2]
[420416289,1776088234040,-491.0,0.00017725,2]
[420416290,1776088234049,-491.0,0.00017725,2]
[420416291,1776088234060,-491.0,0.00017725,2]
[420416292,1776088234071,-491.0,0.00017725,2]
[420416293,1776088234087,-491.0,0.00017725,2]
[420416294,1776088234097,-491.0,0.00017725,2]
[420416295,1776088234124,-257.84668463,0.00017725,2]
[420416296,1776088234134,-491.0,0.00017725,2]
[420416297,1776088234148,-491.0,0.00017725,2]
[420416298,1776088234175,-491.0,0.00017725,2]
[420416299,1776088234194,-491.0,0.00017725,2]
[420416300,1776088234211,-491.0,0.00017725,2]
[420416301,1776088234224,-491.0,0.00017725,2]
[420416302,1776088234237,-491.0,0.00017725,2]
[420416303,1776088234255,-491.0,0.00017725,2]
[420416304,1776088234265,-491.0,0.00017725,2]
[420416305,1776088234295,-491.0,0.00017725,2]
[420416306,1776088234310,-491.0,0.00017725,2]
[420416307,1776088234321,-491.0,0.00017725,2]
[420416308,1776088234339,-491.0,0.00017725,2]
[420416309,1776088234350,-491.0,0.00017725,2]
[420416310,1776088234360,-491.0,0.00017725,2]